fUSD/lending_fUSD_20240713
["ID","MTS","AMOUNT","RATE_DAILY","PERIOD"]
[331958259,1720899032249,-305.97927524,0.00012498,2]
[331958260,1720899032272,-1699.67601483,0.00012498,2]
[331958261,1720899032484,-360.699997,0.00012498,2]
[331958262,1720899032534,-328.21590955,0.00012498,2]
[331958267,1720899038254,-2065.0,0.00012432,2]
[331958268,1720899038358,-3575.11595133,0.00012432,2]
[331958269,1720899038371,-20524.28724357,0.00012498,2]
[331958270,1720899038381,-1027.37,0.00012513,2]
[331958271,1720899038391,-2243.29435197,0.0001259,2]
[331958272,1720899038400,-166.51,0.0001261,2]
[331958273,1720899038410,-409.6,0.00012628,2]
[331958274,1720899038419,-150.99,0.00012654,2]
[331958275,1720899038429,-167.57,0.00012696,2]
[331958276,1720899038438,-499.99,0.00012719,2]
[331958277,1720899038448,-455.18,0.00012719,2]
[331958278,1720899038457,-188.89,0.00012775,2]
[331958279,1720899038466,-580.22,0.00012894,2]
[331958280,1720899038476,-500.0,0.00012904,2]
[331958282,1720899038485,-500.0,0.00012904,2]
[331958284,1720899038494,-1250.0,0.00013,2]
[331958286,1720899038503,-150.0,0.00013095,2]
[331958288,1720899038512,-832.53,0.00013096,2]
[331958289,1720899038521,-832.53,0.00013096,2]
[331958291,1720899038530,-832.53,0.00013096,2]
[331958292,1720899038540,-22073.24504756,0.0001319,2]
[331958293,1720899038549,-419.58,0.000132,2]
[331958294,1720899038559,-832.53,0.000132,2]
[331958295,1720899038568,-419.58,0.000132,2]
[331958296,1720899038577,-832.53,0.000132,2]
[331958297,1720899038586,-832.53,0.000132,2]
[331958298,1720899038595,-832.53,0.000132,2]
[331958299,1720899038605,-3971.82363166,0.00013288,2]
[331958300,1720899038614,-424.89,0.0001337,2]
[331958301,1720899038623,-150.0,0.0001337,2]
[331958303,1720899038632,-150.0,0.0001337,2]
[331958304,1720899038641,-150.0,0.0001337,2]
[331958306,1720899038650,-235.33,0.0001337,2]
[331958308,1720899038659,-424.89,0.0001337,2]
[331958310,1720899038668,-150.0,0.0001337,2]
[331958312,1720899038678,-165.07,0.0001337,2]
[331958314,1720899038687,-150.0,0.0001337,2]
[331958315,1720899038696,-165.07,0.0001337,2]
[331958316,1720899038706,-150.0,0.0001337,2]
[331958317,1720899038715,-150.0,0.0001337,2]
[331958318,1720899038724,-165.07,0.0001337,2]
[331958319,1720899038733,-165.07,0.0001337,2]
[331958320,1720899038742,-257.94,0.0001337,2]
[331958321,1720899038752,-174.522798,0.00013396,2]
[331958322,1720899038761,-420.0,0.00013468,2]
[331958323,1720899038771,-155.0,0.00013472,2]
[331958324,1720899038780,-385.85878321,0.00013495,2]
[331958325,1720899038790,-155.60557615,0.00013543,2]
[331958326,1720899038799,-46515.9280971,0.00013574,2]
[331958327,1720899038808,-2860.8731,0.0001366,2]
[331958328,1720899038817,-2860.8731,0.0001366,2]
[331958329,1720899038826,-2795.87001,0.0001366,2]
[331958330,1720899038835,-2860.8731,0.0001367,2]
[331958331,1720899038844,-341.74,0.00013699,2]
[331958332,1720899038853,-267.72,0.00013699,2]
[331958333,1720899038863,-4243.7712,0.00013699,2]
[331958334,1720899038872,-3768.5956,0.00013699,2]
[331958335,1720899038882,-2625.0287,0.000137,2]
[331958336,1720899038891,-754.7796,0.000137,2]
[331958337,1720899038900,-197.1681,0.000137,2]
[331958338,1720899038910,-14413.3648,0.000137,2]
[331958340,1720899038920,-404.1856,0.000137,2]
[331958342,1720899038929,-5010.2399,0.000137,2]
[331958344,1720899038938,-6132.4036,0.000137,2]
[331958346,1720899038948,-9435.0816,0.000137,2]
[331958347,1720899038957,-2087.5524,0.000137,2]
[331958349,1720899038967,-466.9961,0.000137,2]
[331958351,1720899038976,-159.52704914,0.000137,2]
[331958353,1720899038985,-2860.8731,0.0001371,2]
[331958355,1720899038994,-150.0,0.00013726,2]
[331958357,1720899039004,-150.0,0.00013726,2]
[331958359,1720899039014,-150.0,0.00013728,2]
[331958361,1720899039023,-150.0,0.0001373,2]
[331958363,1720899039032,-214.49213092,0.00013732,2]
[331958365,1720899039042,-150.0,0.00013732,2]
[331958367,1720899039052,-150.0,0.00013733,2]
[331958369,1720899039061,-1500.0,0.00013737,2]
[331958371,1720899039070,-150.0,0.00013737,2]
[331958372,1720899039080,-150.0,0.0001374,2]
[331958374,1720899039091,-150.0,0.00013743,2]
[331958376,1720899039101,-150.0,0.00013744,2]
[331958378,1720899039111,-150.0,0.00013744,2]
[331958380,1720899039121,-150.0,0.00013748,2]
[331958382,1720899039131,-150.0,0.00013748,2]
[331958384,1720899039140,-2860.87311,0.0001375,2]
[331958386,1720899039150,-150.0,0.00013755,2]
[331958388,1720899039160,-150.0,0.00013757,2]
[331958390,1720899039170,-150.0,0.00013761,2]
[331958392,1720899039180,-150.0,0.00013762,2]
[331958394,1720899039190,-150.0,0.00013765,2]
[331958396,1720899039201,-150.0,0.00013767,2]
[331958398,1720899039210,-150.0,0.00013767,2]
[331958400,1720899039220,-150.0,0.00013772,2]
[331958402,1720899039230,-150.0,0.00013782,2]
[331958403,1720899039242,-150.0,0.00013782,2]
[331958406,1720899039253,-150.0,0.00013782,2]
[331958407,1720899039263,-1531.9704066,0.00013784,2]
[331958409,1720899039272,-150.0,0.00013791,2]
[331958411,1720899039284,-150.0,0.00013796,2]
[331958413,1720899039294,-529.84,0.00013799,2]
[331958415,1720899039303,-500.0,0.00013799,2]
[331958417,1720899039313,-178.12818934,0.00013799,2]
[331958419,1720899039323,-500.0,0.00013799,2]
[331958421,1720899039335,-500.0,0.00013799,2]
[331958423,1720899039345,-429.32178913,0.00013799,2]
[331958426,1720899039364,-500.0,0.00013799,2]
[331958428,1720899039376,-524.7,0.00013799,2]
[331958430,1720899039387,-515.41051228,0.00013799,2]
[331958454,1720899039616,-513.25537272,0.00013799,2]
[331958456,1720899039626,-543.41,0.00013799,2]
[331958458,1720899039635,-500.0,0.00013799,2]
[331958460,1720899039644,-150.0,0.00013799,2]
[331958461,1720899039654,-500.0,0.00013799,2]
[331958463,1720899039663,-500.0,0.00013799,2]
[331958466,1720899039673,-500.0,0.00013799,2]
[331958467,1720899039683,-539.7,0.00013799,2]
[331958469,1720899039694,-150.0,0.00013799,2]
[331958472,1720899039704,-500.0,0.00013799,2]
[331958474,1720899039714,-502.93860553,0.00013799,2]
[331958476,1720899039724,-577.02256183,0.00013799,2]
[331958478,1720899039733,-500.0,0.00013799,2]
[331958479,1720899039742,-500.0,0.00013799,2]
[331958481,1720899039752,-660.74,0.00013799,2]
[331958483,1720899039761,-616.79,0.00013799,2]
[331958485,1720899039771,-663.57,0.00013799,2]
[331958487,1720899039781,-566.82,0.00013799,2]
[331958489,1720899039790,-500.0,0.00013799,2]
[331958491,1720899039800,-500.0,0.00013799,2]
[331958493,1720899039809,-581.62,0.00013799,2]
[331958495,1720899039819,-752.12,0.00013799,2]
[331958497,1720899039829,-500.0,0.00013799,2]
[331958499,1720899039838,-553.08,0.00013799,2]
[331958501,1720899039848,-500.0,0.00013799,2]
[331958503,1720899039857,-500.0,0.00013799,2]
[331958505,1720899039867,-500.0,0.00013799,2]
[331958507,1720899039876,-595.48,0.00013799,2]
[331958509,1720899039886,-500.0,0.00013799,2]
[331958511,1720899039895,-500.0,0.00013799,2]
[331958513,1720899039905,-755.67,0.00013799,2]
[331958515,1720899039915,-500.0,0.00013799,2]
[331958517,1720899039924,-578.23,0.00013799,2]
[331958519,1720899039934,-917.06,0.00013799,2]
[331958521,1720899039944,-539.01,0.00013799,2]
[331958523,1720899039953,-2018.97,0.00013799,2]
[331958524,1720899039963,-500.0,0.00013799,2]
[331958526,1720899039974,-513.08472773,0.00013799,2]
[331958528,1720899039984,-504.31180441,0.00013799,2]
[331958530,1720899039993,-500.0,0.00013799,2]
[331958532,1720899040003,-500.0,0.00013799,2]
[331958534,1720899040012,-500.0,0.00013799,2]
[331958536,1720899040021,-508.91673713,0.00013799,2]
[331958538,1720899040031,-500.0,0.00013799,2]
[331958540,1720899040041,-828.72,0.00013799,2]
[331958542,1720899040050,-567.01,0.00013799,2]
[331958543,1720899040060,-500.0,0.00013799,2]
[331958545,1720899040069,-533.37,0.00013799,2]
[331958547,1720899040079,-500.0,0.00013799,2]
[331958549,1720899040089,-500.0,0.00013799,2]
[331958551,1720899040099,-546.27,0.00013799,2]
[331958553,1720899040109,-1392980.58706383,0.000138,2]
[331958555,1720899040123,-62684.30311035,0.000138,2]
[331958557,1720899040134,-7273.65529764,0.000138,2]
[331958559,1720899040145,-472.48278568,0.000138,2]
[331958561,1720899040161,-318.20514663,0.000138,2]
[331958587,1720899040393,884.04,0.00010959,2]
[331958595,1720899040467,-150.0,0.00013779,2]
[331958597,1720899040478,-150.0,0.00013782,2]
[331958599,1720899040487,-150.0,0.00013788,2]
[331958602,1720899040498,-150.0,0.00013798,2]
[331958604,1720899040509,-585.74,0.00013799,2]
[331958606,1720899040518,-150.0,0.00013799,2]
[331958608,1720899040528,-500.0,0.00013799,2]
[331958610,1720899040537,-102238.05840982,0.000138,2]
[331958612,1720899040547,-2000.0,0.000138,2]
[331958613,1720899040556,-200.0,0.000138,2]
[331958615,1720899040565,-987.72621947,0.000138,2]
[331958618,1720899040580,-1012.27378053,0.000138,2]
[331958620,1720899040589,-200.0,0.000138,2]
[331958622,1720899040598,-838.25649552,0.000138,2]
[331958624,1720899040610,-1161.74350448,0.000138,2]
[331958626,1720899040619,-200.0,0.000138,2]
[331958628,1720899040628,-2860.8731,0.000138,2]
[331958630,1720899040638,-145.59258799,0.000138,2]
[331958632,1720899040649,-840.96512736,0.000138,2]
[331958637,1720899040681,-964.75073341,0.000138,2]
[331958639,1720899040692,-150.0,0.00013808,2]
[331958641,1720899040702,-150.0,0.00013808,2]
[331958643,1720899040712,-452.8265396,0.00013808,2]
[331958645,1720899040722,-150.0,0.00013809,2]
[331958647,1720899040733,-150.0,0.0001381,2]
[331958649,1720899040742,-150.0,0.00013817,2]
[331958651,1720899040752,-150.0,0.0001382,2]
[331958653,1720899040762,-150.0,0.00013825,2]
[331958655,1720899040772,-150.0,0.00013833,2]
[331958657,1720899040781,-150.0,0.00013833,2]
[331958659,1720899040792,-150.0,0.00013833,2]
[331958661,1720899040801,-681.0,0.00013833,2]
[331958663,1720899040810,-150.0,0.00013836,2]
[331958665,1720899040820,-150.0,0.00013837,2]
[331958667,1720899040830,-150.0,0.00013837,2]
[331958669,1720899040840,-150.0,0.00013839,2]
[331958671,1720899040851,-150.0,0.00013839,2]
[331958673,1720899040861,-150.0,0.0001384,2]
[331958675,1720899040871,-150.0,0.00013845,2]
[331958677,1720899040882,-150.0,0.00013846,2]
[331958680,1720899040893,-150.0,0.00013846,2]
[331958682,1720899040902,-150.0,0.00013846,2]
[331958683,1720899040911,-150.0,0.00013846,2]
[331958686,1720899040922,-150.0,0.00013853,2]
[331958688,1720899040931,-529.84,0.00013854,2]
[331958690,1720899040940,-500.0,0.00013854,2]
[331958691,1720899040950,-500.0,0.00013854,2]
[331958693,1720899040960,-524.7,0.00013854,2]
[331958696,1720899040971,-543.41,0.00013854,2]
[331958698,1720899040981,-500.0,0.00013854,2]
[331958700,1720899040990,-217.07,0.00013854,2]
[331958702,1720899041001,-500.0,0.00013854,2]
[331958704,1720899041010,-500.0,0.00013854,2]
[331958706,1720899041020,-539.7,0.00013854,2]
[331958708,1720899041030,-500.0,0.00013854,2]
[331958710,1720899041042,-423.87,0.00013854,2]
[331958712,1720899041052,-500.0,0.00013854,2]
[331958714,1720899041061,-660.74,0.00013854,2]
[331958716,1720899041072,-616.79,0.00013854,2]
[331958718,1720899041082,-606.29487165,0.00013854,2]
[331958720,1720899041095,-57.27512835,0.00013854,2]
[331958722,1720899041104,-566.82,0.00013854,2]
[331958724,1720899041113,-500.0,0.00013854,2]
[331958726,1720899041123,-500.0,0.00013854,2]
[331958728,1720899041132,-581.62,0.00013854,2]
[331958730,1720899041142,-752.12,0.00013854,2]
[331958731,1720899041151,-405.28199305,0.00013854,2]
[331958733,1720899041164,-94.71800695,0.00013854,2]
[331958735,1720899041173,-553.08,0.00013854,2]
[331958737,1720899041183,-233.41863574,0.00013854,2]
[331958740,1720899041194,-266.58136426,0.00013854,2]
[331958742,1720899041203,-500.0,0.00013854,2]
[331958744,1720899041213,-500.0,0.00013854,2]
[331958746,1720899041222,-453.81554332,0.00013854,2]
[331959047,1720899044643,-215.6511,0.000117,2]
[331959049,1720899044652,-182.3404,0.00013648,2]
[331959051,1720899044664,-182.43125495,0.00013648,2]
[331959053,1720899044673,-141.66445668,0.00013854,2]
[331959055,1720899044682,-500.0,0.00013854,2]
[331959057,1720899044692,-310.22428831,0.00013854,2]
[331959059,1720899044705,-189.77571169,0.00013854,2]
[331959061,1720899044714,-722.67428831,0.00013854,2]
[331959064,1720899044725,-32.99571169,0.00013854,2]
[331959066,1720899044735,-500.0,0.00013854,2]
[331959067,1720899044744,-578.23,0.00013854,2]
[331959069,1720899044754,-917.06,0.00013854,2]
[331959072,1720899044764,-383.71428831,0.00013854,2]
[331959074,1720899044774,-155.29571169,0.00013854,2]
[331959076,1720899044784,-2018.97,0.00013854,2]
[331959078,1720899044794,-500.0,0.00013854,2]
[331959080,1720899044803,-500.0,0.00013854,2]
[331959081,1720899044812,-500.0,0.00013854,2]
[331959083,1720899044822,-500.0,0.00013854,2]
[331959085,1720899044831,-500.0,0.00013854,2]
[331959087,1720899044841,-828.72,0.00013854,2]
[331959089,1720899044850,-567.01,0.00013854,2]
[331959092,1720899044860,-500.0,0.00013854,2]
[331959094,1720899044869,-533.37,0.00013854,2]
[331959096,1720899044879,-500.0,0.00013854,2]
[331959097,1720899044888,-500.0,0.00013854,2]
[331959099,1720899044898,-546.27,0.00013854,2]
[331959101,1720899044908,-585.74,0.00013854,2]
[331959103,1720899044917,-500.0,0.00013854,2]
[331959105,1720899044927,-150.0,0.00013855,2]
[331959107,1720899044937,-150.0,0.00013861,2]
[331959109,1720899044948,-150.0,0.00013863,2]
[331959111,1720899044958,-452.8265396,0.00013863,2]
[331959113,1720899044968,-842.66774871,0.00013868,2]
[331959116,1720899044981,-657.33225129,0.00013868,2]
[331959118,1720899044991,-132.79761877,0.00013868,2]
[331959120,1720899045003,-17.20238123,0.00013868,2]
[331959122,1720899045012,-150.0,0.0001387,2]
[331959124,1720899045022,-150.0,0.00013875,2]
[331959126,1720899045032,-150.0,0.00013877,2]
[331959128,1720899045041,-150.0,0.00013879,2]
[331959130,1720899045050,-150.0,0.00013879,2]
[331959132,1720899045060,-150.0,0.0001388,2]
[331959134,1720899045069,-20.89197352,0.00013884,2]
[331959136,1720899045081,-129.10802648,0.00013884,2]
[331959138,1720899045091,-150.0,0.00013885,2]
[331959140,1720899045101,-150.0,0.00013887,2]
[331959142,1720899045110,-150.0,0.00013887,2]
[331959144,1720899045120,-173.68993744,0.00013889,2]
[331959147,1720899045140,-255.46599055,0.00013889,2]
[331959149,1720899045150,-150.0,0.00013894,2]
[331959151,1720899045159,-150.0,0.00013896,2]
[331959153,1720899045168,-150.0,0.00013897,2]
[331959155,1720899045178,-150.0,0.00013899,2]
[331959157,1720899045187,-63.75263787,0.00013899,2]
[331959159,1720899045201,-91.24736213,0.00013899,2]
[331959161,1720899045209,-10000.0,0.000139,2]
[331959163,1720899045219,-150.0,0.000139,2]
[331959165,1720899045228,-150.0,0.00013904,2]
[331959167,1720899045238,-1500.0,0.00013905,2]
[331959169,1720899045247,-150.0,0.00013905,2]
[331959171,1720899045256,-300.0,0.00013908,2]
[331959173,1720899045265,-529.84,0.00013909,2]
[331959175,1720899045275,-500.0,0.00013909,2]
[331959176,1720899045287,-500.0,0.00013909,2]
[331959178,1720899045296,-524.7,0.00013909,2]
[331959180,1720899045305,-543.41,0.00013909,2]
[331959182,1720899045315,-500.0,0.00013909,2]
[331959184,1720899045324,-500.0,0.00013909,2]
[331959186,1720899045334,-500.0,0.00013909,2]
[331959188,1720899045344,-539.7,0.00013909,2]
[331959190,1720899045354,-500.0,0.00013909,2]
[331959192,1720899045365,-500.0,0.00013909,2]
[331959194,1720899045375,-660.74,0.00013909,2]
[331959196,1720899045384,-616.79,0.00013909,2]
[331959198,1720899045393,-663.57,0.00013909,2]
[331959200,1720899045403,-566.82,0.00013909,2]
[331959202,1720899045412,-500.0,0.00013909,2]
[331959204,1720899045422,-500.0,0.00013909,2]
[331959206,1720899045431,-581.62,0.00013909,2]
[331959208,1720899045441,-752.12,0.00013909,2]
[331959210,1720899045453,-500.0,0.00013909,2]
[331959212,1720899045463,-553.08,0.00013909,2]
[331959214,1720899045472,-559.54272152,0.00013909,2]
[331959216,1720899045481,-500.0,0.00013909,2]
[331959218,1720899045491,-500.0,0.00013909,2]
[331959220,1720899045501,-595.48,0.00013909,2]
[331959222,1720899045510,-500.0,0.00013909,2]
[331959224,1720899045519,-500.0,0.00013909,2]
[331959226,1720899045529,-755.67,0.00013909,2]
[331959228,1720899045538,-500.0,0.00013909,2]
[331959230,1720899045547,-578.23,0.00013909,2]
[331959232,1720899045556,-917.06,0.00013909,2]
[331959234,1720899045565,-539.01,0.00013909,2]
[331959236,1720899045576,-2018.97,0.00013909,2]
[331959237,1720899045585,-500.0,0.00013909,2]
[331959239,1720899045595,-500.0,0.00013909,2]
[331959241,1720899045604,-500.0,0.00013909,2]
[331959243,1720899045612,-500.0,0.00013909,2]
[331959245,1720899045621,-500.0,0.00013909,2]
[331959247,1720899045630,-828.72,0.00013909,2]
[331959248,1720899045639,-567.01,0.00013909,2]
[331959250,1720899045648,-500.0,0.00013909,2]
[331959252,1720899045658,-533.37,0.00013909,2]
[331959254,1720899045668,-500.0,0.00013909,2]
[331959256,1720899045677,-500.0,0.00013909,2]
[331959258,1720899045686,-546.27,0.00013909,2]
[331959260,1720899045697,-585.74,0.00013909,2]
[331959262,1720899045707,-500.0,0.00013909,2]
[331959264,1720899045716,-150.0,0.0001391,2]
[331959265,1720899045725,-150.0,0.0001391,2]
[331959267,1720899045734,-150.0,0.00013911,2]
[331959269,1720899045744,-150.0,0.00013916,2]
[331959270,1720899045753,-452.8265396,0.00013918,2]
[331959271,1720899045762,-150.0,0.00013918,2]
[331959272,1720899045772,-150.0,0.0001392,2]
[331959273,1720899045781,-1500.0,0.0001392,2]
[331959274,1720899045791,-150.0,0.00013921,2]
[331959275,1720899045801,-150.0,0.00013924,2]
[331959276,1720899045811,-150.0,0.00013924,2]
[331959278,1720899045820,-150.0,0.00013927,2]
[331959280,1720899045830,-150.0,0.00013929,2]
[331959282,1720899045840,-150.0,0.00013931,2]
[331959283,1720899045849,-150.0,0.00013933,2]
[331959285,1720899045859,-150.0,0.00013934,2]
[331959287,1720899045868,-2000.0,0.00013938,2]
[331959289,1720899045878,-200.0,0.00013938,2]
[331959291,1720899045887,-2000.0,0.00013938,2]
[331959293,1720899045897,-200.0,0.00013938,2]
[331959294,1720899045906,-150.0,0.00013938,2]
[331959295,1720899045916,-200.0,0.00013938,2]
[331959296,1720899045926,-150.0,0.00013942,2]
[331959297,1720899045936,-150.0,0.00013943,2]
[331959298,1720899045947,-150.0,0.00013945,2]
[331959299,1720899045957,-150.0,0.00013947,2]
[331959300,1720899045967,-150.0,0.00013948,2]
[331959301,1720899045977,-150.0,0.00013948,2]
[331959302,1720899045987,-150.0,0.00013949,2]
[331959303,1720899045996,-150.0,0.00013951,2]
[331959304,1720899046006,-150.0,0.00013952,2]
[331959305,1720899046015,-150.0,0.00013953,2]
[331959306,1720899046025,-150.0,0.00013954,2]
[331959308,1720899046035,-150.0,0.00013954,2]
[331959310,1720899046045,-150.0,0.00013955,2]
[331959311,1720899046054,-150.0,0.00013962,2]
[331959312,1720899046063,-300.0,0.00013963,2]
[331959313,1720899046073,-529.84,0.00013964,2]
[331959314,1720899046083,-500.0,0.00013964,2]
[331959315,1720899046092,-500.0,0.00013964,2]
[331959317,1720899046101,-524.7,0.00013964,2]
[331959318,1720899046110,-543.41,0.00013964,2]
[331959320,1720899046119,-500.0,0.00013964,2]
[331959322,1720899046129,-500.0,0.00013964,2]
[331959324,1720899046139,-99.87142346,0.00013964,2]
[331959325,1720899046151,-400.12857654,0.00013964,2]
[331959326,1720899046160,-167.51001847,0.00013964,2]
[331959327,1720899046172,-372.18998153,0.00013964,2]
[331959328,1720899046181,-500.0,0.00013964,2]
[331959329,1720899046191,-500.0,0.00013964,2]
[331959330,1720899046201,-660.74,0.00013964,2]
[331959331,1720899046211,-165.66101847,0.00013964,2]
[331959332,1720899046222,-302.0,0.00013964,2]
[331959333,1720899046249,-149.12898153,0.00013964,2]
[331959334,1720899046259,-663.57,0.00013964,2]
[331959335,1720899046268,-566.82,0.00013964,2]
[331959336,1720899046279,-500.0,0.00013964,2]
[331959337,1720899046293,-500.0,0.00013964,2]
[331959339,1720899046301,-581.62,0.00013964,2]
[331959341,1720899046310,-752.12,0.00013964,2]
[331959343,1720899046320,-500.0,0.00013964,2]
[331959344,1720899046331,-553.08,0.00013964,2]
[331959345,1720899046341,-500.0,0.00013964,2]
[331959346,1720899046350,-500.0,0.00013964,2]
[331959347,1720899046362,-595.48,0.00013964,2]
[331959348,1720899046371,-500.0,0.00013964,2]
[331959349,1720899046381,-500.0,0.00013964,2]
[331959350,1720899046390,-755.67,0.00013964,2]
[331959351,1720899046400,-500.0,0.00013964,2]
[331959352,1720899046410,-578.23,0.00013964,2]
[331959353,1720899046420,-917.06,0.00013964,2]
[331959354,1720899046430,-539.01,0.00013964,2]
[331959355,1720899046439,-2018.97,0.00013964,2]
[331959356,1720899046449,-500.0,0.00013964,2]
[331959357,1720899046459,-407.63816904,0.00013964,2]
[331959358,1720899046468,-500.0,0.00013964,2]
[331959359,1720899046479,-500.0,0.00013964,2]
[331959360,1720899046489,-500.0,0.00013964,2]
[331959361,1720899046498,-828.72,0.00013964,2]
[331959362,1720899046508,-567.01,0.00013964,2]
[331959363,1720899046517,-500.0,0.00013964,2]
[331959364,1720899046527,-533.37,0.00013964,2]
[331959365,1720899046537,-500.0,0.00013964,2]
[331959366,1720899046547,-507.0380474,0.00013964,2]
[331959367,1720899046557,-546.27,0.00013964,2]
[331959368,1720899046566,-585.74,0.00013964,2]
[331959369,1720899046576,-500.0,0.00013964,2]
[331959370,1720899046585,-150.0,0.00013971,2]
[331959371,1720899046594,-661.838495,0.00013973,2]
[331959372,1720899046605,-150.0,0.00013974,2]
[331959373,1720899046616,-150.0,0.00013978,2]
[331959374,1720899046626,-150.0,0.00013981,2]
[331959375,1720899046635,-150.0,0.00013981,2]
[331959376,1720899046646,-150.0,0.00013989,2]
[331959377,1720899046655,-263.66714754,0.00013989,2]
[331959378,1720899046665,-350.0,0.0001399,5]
[331959379,1720899046676,-150.0,0.00013991,2]
[331959380,1720899046686,-150.0,0.00013991,2]
[331959381,1720899046696,-150.0,0.00013992,2]
[331959382,1720899046706,-150.0,0.00013992,2]
[331959383,1720899046716,-150.0,0.00013995,2]
[331959384,1720899046726,-335.9323113,0.00013998,2]
[331959385,1720899046735,-162.98759853,0.00013998,2]
[331959386,1720899046745,-486.47443808,0.00013998,2]
[331959387,1720899046754,-150.0,0.00013998,2]
[331959388,1720899046764,-300.0,0.00013998,2]
[331959389,1720899046773,-300.0,0.00013999,2]
[331959390,1720899046782,-300.0,0.00013999,2]
[331959391,1720899046792,-150.01,0.00013999,2]
[331959392,1720899046802,-5930.08993556,0.00013999,2]
[331959393,1720899046812,-500.0,0.00013999,2]
[331959394,1720899046821,-500.0,0.00013999,2]
[331959395,1720899046831,-500.0,0.00013999,2]
[331959396,1720899046841,-246.32684473,0.00013999,2]
[331959412,1720899046999,-296.66315527,0.00013999,2]
[331959413,1720899047009,-500.0,0.00013999,2]
[331959414,1720899047018,-400.0,0.00013999,2]
[331959415,1720899047028,-346.10523333,0.00013999,2]
[331959416,1720899047039,-153.89476667,0.00013999,2]
[331959417,1720899047048,-563.47,0.00013999,2]
[331959418,1720899047058,-629.72,0.00013999,2]
[331959419,1720899047067,-150.0,0.00013999,2]
[331959420,1720899047077,-54515.51399498,0.00014,2]
[331959421,1720899047088,-289.78365456,0.00014,2]
[331959422,1720899047099,-329.6096307,0.00014,2]
[331959423,1720899047124,-974.22778733,0.00014,2]
[331959424,1720899047135,-596.13999999,0.00014,2]
[331959425,1720899047147,-436.08824852,0.00014,2]
[331959426,1720899047160,-274.85651327,0.00014,2]
[331959427,1720899047171,-363.366,0.00014,2]
[331959428,1720899047182,-623.04947874,0.00014,2]
[331959429,1720899047193,-1919.57705919,0.00014,2]
[331959430,1720899047206,-382.84633833,0.00014,2]
[331959431,1720899047217,-2007.07929185,0.00014,2]
[331959432,1720899047229,-530.39071128,0.00014,2]
[331959433,1720899047240,-718.1047832,0.00014,2]
[331959434,1720899047252,-19622.20545365,0.00014,2]
[331959435,1720899047265,-307.44854805,0.00014,2]
[331959436,1720899047299,-371.88291753,0.00014,2]
[331959437,1720899047311,-1324.8,0.00014,2]
[331959438,1720899047323,-344.849717,0.00014,2]
[331959439,1720899047339,-1494.82037085,0.00014,2]
[331959440,1720899047350,-310.531547,0.00014,2]
[331959441,1720899047364,-30282.85755839,0.00014,2]
[331959442,1720899047374,-619.0,0.00014,2]
[331959443,1720899047383,-36499.55593093,0.00014,2]
[331959444,1720899047395,-967.39029333,0.00014,2]
[331959445,1720899047407,-460.65712765,0.00014,2]